bitfinex/quotes_ETHUSD_20251212
["timestamp","ask_amount","ask_price","bid_price","bid_amount"]
[1765549940348,0.405504,3233.6,3232.8,0.58047529]
[1765549940649,0.405504,3233.4,3232.3,3.09369214]
[1765549940823,0.405504,3233.2,3232.4,0.58047529]
[1765549941335,0.405504,3233.2,3232.3,6.18746437]
[1765549941336,0.870004,3233.2,3232.3,6.18746437]
[1765549941537,0.405504,3233.5,3232.3,6.85701081]
[1765549941845,0.405504,3233.3,3232.3,3.09369214]
[1765549942025,0.405504,3233.1,3232.3,3.09369214]
[1765549942343,0.405504,3233.5,3232.4,0.58047529]
[1765549942546,0.405504,3233.5,3232.4,0.94629842]
[1765549942844,0.405504,3233.4,3232.5,3.09358081]
[1765549943046,0.405504,3233.4,3232.5,6.18716162]
[1765549943544,0.405504,3233.4,3232.4,0.94629842]
[1765549943545,0.405504,3233.5,3232.4,6.76779029]
[1765549943929,0.405504,3233.5,3232.4,7.25479029]
[1765549944114,0.405504,3233.5,3232.5,1.03484863]
[1765549944313,0.6483,3233.9,3232.6,2.01395847]
[1765549944519,0.4645,3234.4,3233.1,0.58047529]
[1765549944741,0.4645,3234.4,3233.3,0.58047529]
[1765549945052,0.405504,3234.3,3233.3,0.58047529]
[1765549945236,0.0307978,3234.2,3233.4,0.67662974]
[1765549945439,0.405504,3234.2,3233.3,0.58047529]
[1765549945641,0.870004,3234.2,3233.3,0.58047529]
[1765549946421,0.508,3234.6,3233.4,0.03092719]
[1765549946620,0.1838,3235.0,3233.5,6.7298668]
[1765549946828,0.4645,3234.9,3233.7,0.58047529]
[1765549947030,0.4645,3234.9,3233.8,0.508]
[1765549947970,0.1838,3235.0,3233.8,0.508]
[1765549948261,0.405504,3234.8,3233.7,1.93001519]
[1765549948469,0.405504,3234.8,3233.7,2.43801519]
[1765549948773,0.405504,3234.8,3233.9,0.58047529]
[1765549948943,0.405504,3234.8,3233.9,1.44274425]
[1765549949551,0.405504,3234.9,3233.9,1.44274425]
[1765549950083,0.405504,3234.7,3232.5,4.12838423]
[1765549950373,0.1914,3233.9,3233.5,3.09261707]
[1765549950674,0.1838,3235.0,3233.8,6.73094836]
[1765549950878,0.4952978,3234.9,3233.9,0.58047529]
[1765549951025,0.1838,3235.0,3234.1,0.58047529]
[1765549951223,0.4952978,3234.9,3234.0,0.58047529]
[1765549951531,0.405504,3234.8,3233.9,0.58047529]
[1765549951731,0.405504,3234.6,3233.6,0.58047529]
[1765549951935,1.15064978,3234.9,3233.3,0.487]
[1765549951936,0.405504,3234.4,3233.3,0.487]
[1765549952132,0.405504,3234.4,3233.9,3.09223281]
[1765549952353,0.508,3234.5,3233.9,3.09223281]
[1765549952647,6.3662,3235.0,3233.9,3.09223281]
[1765549952648,0.1838,3235.0,3233.9,9.27671593]
[1765549952960,0.6918,3235.0,3234.0,0.58047529]
[1765549953255,0.405504,3234.8,3233.5,0.508]
[1765549953453,0.405504,3234.6,3233.9,0.58047529]
[1765549953748,0.405504,3234.7,3233.9,3.67266116]
[1765549954049,0.870004,3234.7,3234.0,0.58047529]
[1765549954250,0.6918,3235.0,3234.0,0.94774428]
[1765549954452,0.0307978,3234.9,3234.1,0.1781]
[1765549954621,0.6918,3235.0,3234.1,0.1781]
[1765549954955,0.6918,3235.0,3234.3,0.58047529]
[1765549955158,0.4645,3235.5,3234.3,0.58047529]
[1765549955159,0.1914,3235.7,3234.4,0.507]
[1765549955359,0.002,3235.9,3234.8,0.58047529]
[1765549955660,0.002,3235.9,3234.9,1.23814237]
[1765549955825,0.002,3235.9,3234.9,0.73114237]
[1765549956026,0.002,3235.9,3234.9,0.508]
[1765549956251,0.4665,3235.9,3234.8,0.507]
[1765549956550,0.002,3235.9,3234.8,0.507]
[1765549956722,0.002,3235.9,3235.3,9.27271041]
[1765549956923,0.002,3235.9,3235.4,0.507]
[1765549957128,0.002,3235.9,3235.5,0.72692822]
[1765549957934,0.002,3235.9,3235.6,0.9917]
[1765549958446,0.002,3235.9,3235.8,14.07767329]
[1765549958750,0.002,3235.9,3235.8,11.78801615]
[1765549959339,0.002,3235.9,3235.8,9.35610815]
[1765549959652,0.002,3235.9,3235.8,16.73398592]
[1765549959856,0.002,3235.9,3235.8,5.58866074]
[1765549960155,0.002,3235.9,3235.8,3.67090115]
[1765549960362,0.002,3235.9,3235.8,4.17790115]
[1765549960657,0.002,3235.9,3235.8,4.66260115]
[1765549960967,0.002,3235.9,3235.8,7.29966415]
[1765549961464,0.002,3236.6,3235.9,1.47067929]
[1765549961632,0.002,3236.6,3236.5,0.75607529]
[1765549961833,0.002,3236.6,3236.5,1.08747529]
[1765549962027,0.002,3236.6,3236.5,0.58047529]
[1765549962460,0.483,3236.6,3235.8,3.09042586]
[1765549962756,0.002,3236.6,3235.9,1.08747529]
[1765549962961,0.002,3236.6,3236.3,0.58047529]
[1765549963256,0.002,3236.6,3236.4,0.507]
[1765549963456,0.002,3236.6,3236.5,12.41107365]
[1765549963639,0.002,3237.4,3236.6,0.58047529]
[1765549963839,0.002,3237.7,3237.3,0.58047529]
[1765549964041,0.1914,3239.5,3237.8,12.238995]
[1765549964042,0.0307978,3239.4,3237.8,12.238995]
[1765549964345,0.481,3239.4,3237.8,0.58047529]
[1765549964546,0.1914,3239.5,3238.1,0.58047529]
[1765549964858,0.1997,3240.1,3239.1,6.17455466]
[1765549965061,0.1997,3240.1,3239.2,0.58047529]
[1765549965236,0.481,3240.0,3239.2,0.58047529]
[1765549965436,0.481,3240.0,3239.1,6.17455466]
[1765549965660,3.28604181,3240.1,3239.0,0.508]
[1765549965850,0.1997,3240.1,3239.2,0.58047529]
[1765549966033,0.1997,3240.1,3239.2,0.507]
[1765549966235,0.1997,3240.6,3239.3,3.05930529]
[1765549966429,0.6807,3240.9,3239.6,6.73094836]
[1765549966631,0.1997,3241.7,3240.3,30.0]
[1765549966838,4.00993296,3242.1,3241.0,0.58047529]
[1765549966839,0.92548318,3242.1,3241.0,0.58047529]
[1765549967067,0.92548318,3242.1,3241.3,0.58047529]
[1765549967300,0.1997,3243.2,3241.8,0.58047529]
[1765549967839,0.1997,3243.2,3241.5,0.92548318]
[1765549967840,0.5117978,3243.1,3241.5,0.92548318]
[1765549968147,0.481,3243.1,3241.8,3.16909]
[1765549968492,0.481,3243.1,3241.5,0.92548318]
[1765549968782,0.481,3243.1,3240.9,3.08556265]
[1765549969079,0.405504,3242.8,3241.0,0.41873458]
[1765549969292,0.405504,3242.6,3241.0,0.41873458]
[1765549969495,0.405504,3242.4,3240.2,0.4847]
[1765549969792,0.405504,3242.2,3239.7,0.1763]
[1765549969993,0.405504,3242.0,3240.4,3.08602793]
[1765549970294,0.481,3242.9,3241.1,4.023148]
[1765549970439,0.481,3242.8,3241.1,0.58047529]
[1765549970635,0.481,3242.8,3241.3,3.777778]
[1765549970838,0.481,3242.8,3241.2,0.509]
[1765549971044,0.481,3242.8,3241.4,0.58047529]
[1765549971045,3.08384987,3242.7,3241.4,0.58047529]
[1765549971260,0.0307978,3242.6,3240.5,0.4847]
[1765549971475,0.0307978,3242.6,3240.4,0.92548318]
[1765549971476,0.405504,3242.4,3240.4,0.92548318]
[1765549971734,0.405504,3242.2,3240.7,0.58047529]
[1765549972039,0.405504,3242.2,3239.9,6.73094836]
[1765549972040,0.405504,3242.2,3239.9,0.4847]
[1765549972244,0.405504,3242.2,3240.3,3.0861284]
[1765549972245,0.481,3242.1,3240.3,3.0861284]
[1765549972446,0.405504,3242.0,3239.6,6.73094836]
[1765549972736,0.405504,3242.0,3239.4,0.1761]
[1765549972737,0.405504,3241.8,3239.4,0.1761]
[1765549972942,0.405504,3241.4,3239.5,0.508]
[1765549973274,0.405504,3241.4,3238.9,23.251666]
[1765549973275,0.405504,3241.2,3238.9,23.251666]
[1765549973474,0.58047529,3241.2,3239.1,3.08724666]
[1765549973689,1.95504785,3241.3,3239.0,0.508]
[1765549973690,0.886504,3241.1,3239.0,0.508]
[1765549973966,0.405504,3241.0,3238.1,7.39174836]
[1765549974168,0.886504,3241.0,3238.5,6.052255]
[1765549974374,0.508,3240.9,3239.2,0.58047529]
[1765549974540,0.405504,3240.7,3239.5,3.08682705]
[1765549974740,0.405504,3240.7,3239.6,3.21407129]
[1765549974947,0.405504,3240.5,3239.5,0.58047529]
[1765549975176,0.405504,3240.5,3238.9,6.73094836]
[1765549975177,0.405504,3240.3,3239.1,0.58047529]
[1765549975338,0.405504,3240.3,3238.6,0.509]
[1765549975559,0.405504,3240.1,3239.0,3.08735096]
[1765549975906,0.405504,3240.1,3238.9,3.08746642]
[1765549976207,0.405504,3239.9,3239.0,0.30874664]
[1765549976385,0.405504,3239.9,3238.4,0.1768]
[1765549976560,0.405504,3239.7,3238.1,0.1761]
[1765549976761,0.405504,3239.7,3238.4,3.08786071]
[1765549977105,0.913504,3240.0,3238.6,6.0656534]
[1765549977266,0.913504,3240.0,3238.8,0.58047529]
[1765549977467,0.481,3239.9,3238.8,0.58047529]
[1765549977675,0.405504,3239.8,3238.8,0.58047529]
[1765549977995,0.508,3240.0,3238.9,0.61134996]
[1765549978181,0.1594204,3240.7,3238.9,0.61134996]
[1765549978182,0.405504,3240.4,3239.2,0.58047529]
[1765549978385,3.08578166,3240.7,3239.2,0.4847]
[1765549978794,6.17156332,3240.7,3239.2,0.4847]
[1765549978960,0.6807,3240.8,3239.6,6.17360166]
[1765549978961,3.76637897,3240.8,3239.6,6.17360166]
[1765549979159,3.76637897,3240.8,3239.9,0.58047529]
[1765549979361,0.4363018,3240.7,3239.9,0.58047529]
[1765549979564,0.405504,3240.7,3239.9,0.58047529]
[1765549979981,0.405504,3240.5,3238.7,1.41018318]
[1765549980303,0.405504,3240.5,3238.5,0.1768]
[1765549980461,0.405504,3240.3,3238.4,3.08791417]
[1765549980662,0.405504,3240.1,3237.9,2.664448]
[1765549980901,0.405504,3240.1,3237.0,1.41018318]
[1765549981063,0.98597929,3239.4,3237.0,3.0892777]
[1765549981264,0.405504,3239.2,3237.2,15.46237059]
[1765549981575,0.405504,3239.2,3237.8,4.18343]
[1765549981773,0.481,3239.1,3237.3,1.06517529]
[1765549982101,0.405504,3239.0,3237.4,2.393624]
[1765549982262,0.405504,3239.0,3237.5,9.203762]
[1765549982458,0.405504,3238.8,3237.6,0.9688462]
[1765549982670,0.405504,3238.7,3237.6,0.509]
[1765549983039,0.405504,3239.2,3238.3,0.58047529]
[1765549983321,3.08661028,3239.8,3238.4,0.58047529]
[1765549983490,3.08661028,3239.8,3238.3,8.05124359]
[1765549983491,6.17322056,3239.8,3238.3,0.509]
[1765549983810,0.886504,3239.7,3238.4,0.97734061]
[1765549984218,0.405504,3239.5,3238.4,0.97734061]
[1765549984620,0.405504,3239.3,3238.3,0.58047529]
[1765549985113,0.481,3239.9,3238.7,0.58047529]
[1765549985285,0.7087,3240.0,3238.9,4.569747]
[1765549985480,0.7087,3240.0,3238.7,0.4847]
[1765549985695,0.7087,3240.0,3238.7,0.509]
[1765549985696,0.9173018,3239.9,3238.7,0.509]
[1765549985896,0.481,3240.5,3239.0,7.111774]
[1765549986190,0.7087,3241.8,3240.7,0.1766]
[1765549986485,0.7087,3241.8,3239.7,8.05124359]
[1765549986690,0.481,3241.7,3240.2,0.58047529]
[1765549986916,0.481,3241.7,3240.5,6.741026]
[1765549987085,0.1997,3241.8,3240.8,0.58047529]
[1765549987288,0.6866,3241.8,3240.8,0.58047529]
[1765549987520,0.1997,3242.3,3241.0,0.58047529]
[1765549987820,0.4869,3242.2,3240.8,0.58047529]
[1765549988025,0.4869,3242.2,3240.7,6.17150614]
[1765549988026,0.509,3242.1,3241.0,0.58047529]
[1765549988220,0.4869,3242.2,3241.0,1.08947529]
[1765549988520,0.509,3242.7,3241.2,0.58047529]
[1765549988706,0.1926,3242.3,3240.8,0.58047529]
[1765549988923,0.1926,3242.3,3241.1,4.332604]
[1765549989209,0.1926,3242.3,3241.3,0.58047529]
[1765549989398,0.509,3242.7,3241.2,6.1705541]
[1765549989399,0.509,3242.7,3241.2,9.74883115]
[1765549989594,0.509,3242.7,3241.5,0.58047529]
[1765549989798,7.16361772,3242.7,3241.5,0.58047529]
[1765549989995,7.16361772,3242.7,3241.3,0.75677529]
[1765549989996,0.0307978,3242.6,3241.3,0.58047529]
[1765549990290,0.405504,3242.5,3241.3,0.58047529]
[1765549990488,0.405504,3242.5,3240.5,0.1763]
[1765549990718,0.405504,3242.3,3240.5,0.1763]
[1765549991021,0.405504,3242.3,3240.6,3.08582638]
[1765549991231,0.98597929,3242.1,3240.5,0.1763]
[1765549991526,0.405504,3241.9,3239.9,3.08649658]
[1765549991741,0.405504,3241.7,3239.8,0.509]
[1765549991951,0.4869,3241.9,3239.5,0.493]
[1765549992097,0.4363018,3241.8,3239.5,0.493]
[1765549992301,0.405504,3241.8,3240.1,3.08632259]
[1765549992622,0.509,3242.0,3240.1,3.08632259]
[1765549992623,0.405504,3241.6,3240.1,3.08632259]
[1765549992824,0.405504,3241.4,3240.1,0.88910755]
[1765549992988,0.405504,3241.2,3240.1,0.88910755]
[1765549993190,0.405504,3241.2,3240.3,0.58047529]
[1765549993389,0.1926,3241.1,3240.3,0.58047529]
[1765549993624,0.405504,3241.0,3239.5,0.493]
[1765549993797,0.4363018,3241.0,3239.2,0.58047529]
[1765549993986,0.4363018,3241.0,3239.6,0.58047529]
[1765549993987,0.405504,3240.8,3239.6,0.58047529]
[1765549994190,0.405504,3240.6,3240.1,3.08631732]
[1765549994419,0.405504,3240.6,3239.3,0.509]
[1765549994623,0.405504,3240.6,3239.2,0.92548318]
[1765549994624,0.405504,3240.6,3239.4,0.509]
[1765549994941,0.405504,3240.8,3240.1,3.08631603]
[1765549995230,0.405504,3240.9,3240.3,6.17226798]
[1765549995447,0.405504,3240.9,3240.1,0.3086316]
[1765549995617,7.06364792,3240.9,3240.1,0.58047529]
[1765549995822,13.23483253,3240.9,3238.0,0.1766]
[1765549996126,0.05,3240.4,3237.7,0.1766]
[1765549996322,0.405504,3240.2,3237.9,5.32282129]
[1765549996625,0.405504,3240.2,3238.0,0.58047529]
[1765549996824,0.405504,3240.0,3237.9,0.509]
[1765549997141,0.405504,3239.6,3237.4,6.68679698]
[1765549997302,0.98597929,3239.4,3237.5,1.26676499]
[1765549997726,0.405504,3239.2,3237.5,1.26676499]
[1765549998033,0.405504,3239.2,3237.1,0.32655777]
[1765549998240,0.405504,3238.9,3237.5,6.102041]
[1765549998425,6.68279224,3239.5,3237.4,17.30958247]
[1765549998426,0.405504,3239.2,3237.8,0.58047529]
[1765549998637,0.405504,3239.2,3238.0,0.58047529]
[1765549998804,0.405504,3239.0,3237.5,0.58047529]
[1765549999007,0.405504,3239.0,3237.6,2.958164]
[1765549999207,0.405504,3238.8,3237.9,0.58047529]
[1765549999428,6.58069522,3238.8,3237.7,0.35386393]
[1765549999627,0.405504,3238.6,3237.7,3.08860845]
[1765549999814,0.4869,3238.7,3237.8,0.58047529]
[1765550000132,0.4869,3238.7,3237.5,0.58047529]
[1765550000133,0.914504,3238.6,3237.5,0.58047529]
[1765550000342,1.98092007,3238.6,3237.5,0.58047529]
[1765550000642,0.405504,3238.4,3237.5,3.66924946]
[1765550000838,0.405504,3238.4,3237.1,3.08917397]
[1765550001008,0.405504,3238.2,3236.7,3.63255]
[1765550001205,0.405504,3238.0,3236.7,5.86430225]
[1765550001516,0.405504,3238.0,3236.7,6.17912584]
[1765550001517,0.405504,3237.8,3236.7,6.17912584]
[1765550002234,0.405504,3237.8,3236.7,3.08955931]
[1765550002434,0.872304,3237.8,3236.7,3.08955931]
[1765550002636,0.405504,3237.8,3236.8,0.61137]
[1765550002840,0.4668,3238.9,3236.9,0.9767]
[1765550003039,0.509,3238.4,3237.1,10.518072]
[1765550003217,0.405504,3238.1,3237.1,3.08918476]
[1765550003539,0.405504,3238.1,3236.4,1.04917529]
[1765550003851,0.405504,3238.1,3236.4,0.001]
[1765550003852,0.405504,3237.9,3236.4,0.001]
[1765550004008,0.509,3237.8,3237.0,3.08928019]
[1765550004207,0.405504,3237.7,3237.2,0.58047529]
[1765550004619,0.872304,3237.7,3236.6,0.58047529]
[1765550004802,0.405504,3237.7,3237.1,3.08918476]
[1765550005007,0.4668,3237.6,3236.2,3.089962]
[1765550005235,0.405504,3237.3,3236.0,0.001]
[1765550005423,3.08861228,3237.7,3236.6,0.58047529]
[1765550005629,0.1857,3237.9,3236.5,0.1766]
[1765550005630,0.914504,3237.6,3236.5,0.1766]
[1765550005830,0.1857,3238.2,3236.7,13.192802]
[1765550006149,0.405504,3238.1,3236.8,1.8750502]
[1765550006306,0.405504,3238.1,3236.8,0.509]
[1765550006507,0.6947,3238.2,3237.1,5.92154]
[1765550006743,0.6947,3238.2,3236.9,0.4677]
[1765550006907,0.509,3238.2,3237.1,3.31892]
[1765550007108,0.1857,3238.8,3237.3,9.269565]
[1765550007308,3.27330934,3238.8,3237.8,5.723349]
[1765550007536,3.27330934,3238.8,3237.8,3.32502]
[1765550007738,3.27330934,3238.8,3237.7,6.17722456]
[1765550008033,6.36091868,3238.8,3237.8,2.45602]
[1765550008238,3.27330934,3238.8,3237.8,2.45602]
[1765550008439,0.1857,3239.1,3237.9,1.46145975]
[1765550008654,3.27300805,3239.1,3237.9,1.38998446]
[1765550008809,0.1857,3239.1,3237.9,1.38998446]
[1765550009137,0.1857,3239.1,3237.7,9.91013684]
[1765550009138,0.4668,3239.0,3237.7,0.58047529]
[1765550009337,0.405504,3238.6,3237.4,3.08882179]
[1765550009640,0.405504,3238.4,3237.4,0.58047529]
[1765550009943,0.405504,3238.4,3237.0,0.4677]
[1765550010126,0.405504,3238.4,3237.5,3.08871383]
[1765550010437,0.405504,3238.4,3237.2,0.58047529]
[1765550010639,0.872304,3238.4,3237.3,0.58047529]
[1765550010816,0.872304,3238.4,3237.4,0.58047529]
[1765550011018,0.405504,3238.4,3237.5,0.509]
[1765550011343,0.405504,3238.9,3238.0,0.58047529]
[1765550011505,0.509,3239.0,3238.0,0.58047529]
[1765550011708,0.509,3239.0,3238.1,0.67573183]
[1765550012033,0.4668,3238.9,3238.1,0.67573183]
[1765550012238,3.59638302,3239.0,3238.1,0.67573183]
[1765550012435,3.59637782,3239.0,3238.1,0.67573183]
[1765550012813,0.405504,3238.8,3238.1,0.67573183]
[1765550013037,0.405504,3238.6,3238.0,0.58047529]
[1765550013239,0.4668,3238.9,3238.0,0.58047529]
[1765550013540,3.49307996,3238.8,3238.2,0.58047529]
[1765550013844,3.49307624,3238.8,3238.2,0.58047529]
[1765550014057,0.405504,3238.8,3238.2,0.58047529]
[1765550014553,0.405504,3238.9,3238.2,1.25616897]
[1765550014751,0.4668,3239.4,3238.2,1.25616897]
[1765550014957,0.508,3239.3,3238.3,0.508]
[1765550015156,0.002,3239.9,3238.7,0.58047529]
[1765550015307,0.002,3239.9,3239.0,6.17474528]
[1765550015641,0.002,3239.9,3239.1,1.25599735]
[1765550015808,0.4668,3239.8,3238.3,0.58047529]
[1765550016010,0.405504,3239.7,3238.6,0.58047529]
[1765550016213,0.405504,3239.5,3238.7,0.58047529]
[1765550016407,0.405504,3239.5,3238.6,3.0877062]
[1765550016648,0.872304,3239.5,3238.6,0.58047529]
[1765550016955,0.872304,3239.5,3238.8,0.58047529]
[1765550017116,0.872304,3239.5,3238.8,3.66802828]
[1765550017725,3.95920028,3239.5,3238.8,3.66802828]
[1765550018323,7.04609656,3239.5,3238.4,0.508]
[1765550018524,7.04609656,3239.5,3238.7,0.58047529]
[1765550018754,7.04609656,3239.5,3238.2,0.508]
[1765550018755,0.4879978,3239.4,3238.2,0.508]
[1765550019046,0.405504,3239.3,3238.8,3.08755762]
[1765550019251,0.405504,3239.3,3238.8,3.0875441]
[1765550019553,0.508,3239.8,3238.9,3.08745484]
[1765550019857,0.508,3239.8,3239.0,0.58047529]
[1765550020141,0.508,3239.8,3239.0,1.3044151]
[1765550020354,0.862704,3239.7,3237.7,3.08857272]
[1765550020571,0.862704,3239.7,3238.3,3.08800799]
[1765550020572,0.8935018,3239.7,3238.3,3.08800799]
[1765550020770,0.405504,3239.5,3238.2,0.58047529]
[1765550021152,0.405504,3239.3,3238.2,0.58047529]
[1765550021342,0.405504,3239.0,3238.0,0.507]
[1765550021538,0.405504,3239.0,3238.2,0.58047529]
[1765550021738,0.405504,3239.1,3238.3,0.67878023]
[1765550022275,0.862704,3239.1,3237.7,0.58047529]
[1765550022450,0.862704,3239.1,3237.4,0.1766]
[1765550022651,0.405504,3238.9,3237.7,3.08854489]
[1765550022858,0.405504,3238.9,3237.9,0.58047529]
[1765550023054,0.405504,3238.8,3238.0,3.08832123]
[1765550023255,0.405504,3238.6,3238.1,0.58047529]
[1765550023541,0.405504,3238.6,3238.1,3.08822918]
[1765550023844,0.92548318,3241.8,3238.1,3.08822918]
[1765550023845,0.507,3239.2,3238.2,0.58047529]
[1765550024172,0.4363018,3239.1,3237.8,0.58047529]
[1765550024370,0.862704,3239.1,3238.0,0.58047529]
[1765550024570,0.862704,3239.1,3238.1,3.66868537]
[1765550024742,0.862704,3239.1,3238.1,4.03555391]
[1765550025750,0.507,3239.2,3238.2,0.58047529]
[1765550025751,0.405504,3238.9,3238.2,0.58047529]
[1765550026069,0.405504,3238.9,3237.6,0.507]
[1765550026273,0.405504,3238.9,3238.0,0.58047529]
[1765550026274,0.862704,3238.9,3238.0,0.58047529]
[1765550026570,0.405504,3238.9,3238.2,0.58047529]
[1765550026786,0.405504,3238.7,3238.0,3.66879783]
[1765550027075,0.405504,3238.9,3238.2,0.58047529]
[1765550027262,0.405504,3238.9,3238.2,1.25617104]
[1765550027469,0.507,3239.2,3238.2,2.24717104]
[1765550027652,6.68147454,3239.2,3238.2,1.66669575]
[1765550027972,0.0307978,3239.1,3238.2,0.58047529]
[1765550028150,0.405504,3239.1,3238.3,0.58047529]
[1765550028553,3.59423727,3239.2,3238.3,0.58047529]
[1765550028875,0.405504,3239.1,3238.3,0.58047529]
[1765550029178,0.507,3239.2,3238.5,0.58047529]
[1765550029376,3.08852236,3239.9,3239.1,0.1762]
[1765550029549,6.17504472,3239.9,3239.1,0.1762]
[1765550029752,0.002,3239.9,3239.1,0.1762]
[1765550030047,0.002,3239.9,3239.1,6.35075149]
[1765550030253,0.002,3239.9,3239.2,1.26625044]
[1765550031819,0.002,3239.9,3239.4,0.58047529]
[1765550032081,0.002,3239.9,3239.7,8.275223]
[1765550032268,0.002,3239.9,3239.3,17.80115956]
[1765550032269,0.002,3239.9,3239.4,0.58047529]
[1765550032783,0.405504,3239.8,3239.2,3.77292577]
[1765550033081,0.405504,3239.8,3239.2,0.68577515]
[1765550033377,0.8935018,3239.8,3238.7,0.506]
[1765550033578,0.405504,3239.8,3239.3,0.58047529]
[1765550033777,0.405504,3239.8,3239.0,0.58047529]
[1765550033952,0.405504,3239.8,3238.7,0.484]
[1765550034153,0.405504,3239.8,3238.8,0.506]
[1765550034356,0.405504,3239.6,3238.1,0.484]
[1765550034555,0.9939978,3239.7,3238.6,3.08772474]
[1765550034556,0.405504,3239.4,3238.6,3.08772474]
[1765550034791,0.862704,3239.4,3238.2,0.506]
[1765550034962,0.0307978,3239.3,3238.0,0.6822]
[1765550035162,0.405504,3239.1,3238.2,0.58047529]
[1765550035367,0.405504,3239.1,3238.3,0.67569368]
[1765550035574,0.405504,3239.1,3238.2,0.58047529]
[1765550035979,0.405504,3239.1,3238.4,0.58047529]
[1765550036578,0.405504,3238.9,3238.3,0.58047529]
[1765550036879,0.405504,3238.9,3238.0,0.75667529]
[1765550037083,0.405504,3238.7,3238.3,0.58047529]
[1765550037465,0.405504,3238.5,3236.9,0.484]
[1765550037660,0.405504,3238.5,3237.3,0.506]
[1765550037889,0.405504,3238.3,3237.4,3.08882663]
[1765550038069,0.405504,3238.1,3237.5,3.44828131]
[1765550038592,0.405504,3238.1,3237.1,0.6826]
[1765550038979,3.49357447,3238.3,3237.6,0.58047529]
[1765550039180,0.405504,3238.3,3237.7,0.506]
[1765550039398,3.08763061,3238.8,3237.7,0.506]
[1765550039399,0.506,3239.0,3238.2,0.1762]
[1765550039957,6.17493592,3238.9,3237.8,3.08851689]
[1765550040164,6.17493592,3238.9,3237.9,0.58047529]
[1765550040488,0.405504,3238.8,3237.9,0.58047529]
[1765550040890,0.862704,3238.8,3237.9,0.58047529]
[1765550041203,0.1815,3239.7,3238.7,0.1762]
[1765550041362,0.506,3239.6,3238.7,0.1762]
[1765550041764,0.1815,3240.1,3238.7,0.6602]
[1765550042001,0.506,3240.0,3239.2,6.17436404]
[1765550042201,0.1815,3240.3,3239.2,6.17436404]
[1765550042202,0.1815,3240.3,3239.4,7.583317]
[1765550042397,0.506,3240.5,3239.8,0.1762]
[1765550042561,0.506,3240.5,3239.8,0.6602]
[1765550042997,0.506,3240.5,3239.5,0.1762]
[1765550043177,0.506,3240.5,3239.6,0.58047529]
[1765550043382,0.506,3240.5,3239.4,2.49495847]
[1765550043576,0.506,3240.5,3239.6,11.56214]
[1765550044083,0.506,3240.5,3239.8,3.08661028]
[1765550044287,0.0307978,3240.4,3239.8,0.58047529]
[1765550044479,0.4363018,3240.4,3239.8,0.58047529]
[1765550044674,0.405504,3240.4,3239.8,0.58047529]
[1765550044867,0.4363018,3240.4,3239.8,0.58047529]
[1765550045068,0.405504,3240.4,3239.8,0.58047529]
[1765550045591,0.405504,3240.4,3239.4,3.08696606]
[1765550045592,0.405504,3239.8,3239.3,0.58047529]
[1765550045790,0.405504,3239.8,3238.7,0.1762]
[1765550045991,0.405504,3239.8,3239.0,3.08734999]
[1765550046226,0.405504,3239.8,3238.8,0.83139151]
[1765550046227,0.405504,3239.8,3238.9,6.17493592]
[1765550046390,0.405504,3239.8,3239.0,0.58047529]
[1765550046391,0.587004,3239.8,3239.0,0.58047529]
[1765550046593,0.507,3239.9,3239.2,6.70610229]
[1765550046769,0.002,3239.9,3239.4,0.58047529]
[1765550046972,0.002,3239.9,3239.5,0.71226813]
[1765550047197,0.002,3239.9,3239.4,0.484]
[1765550047374,0.002,3239.9,3239.8,0.58047529]
[1765550047696,0.002,3239.9,3239.6,0.58047529]
[1765550047884,0.002,3239.9,3239.6,0.4822]
[1765550048198,0.002,3239.9,3239.8,3.66708557]
[1765550048400,0.002,3239.9,3239.8,4.89568601]
[1765550048580,0.002,3239.9,3239.8,13.1065606]
[1765550049464,0.002,3241.2,3240.7,0.58047529]
[1765550049888,0.002,3241.2,3240.6,0.505]
[1765550050063,3.08728101,3241.2,3240.2,0.1766]
[1765550050263,0.7993259,3241.1,3240.2,3.08621326]
[1765550050497,0.405504,3241.0,3240.3,0.58047529]
[1765550050698,0.407504,3241.2,3240.3,0.58047529]
[1765550050902,0.867304,3241.2,3240.3,0.58047529]
[1765550051075,0.867304,3241.2,3240.0,0.58047529]
[1765550051277,0.4598,3241.1,3239.8,0.72360044]
[1765550051500,0.405504,3240.4,3239.4,6.17398282]
[1765550051679,0.405504,3240.9,3239.7,7.72867459]
[1765550051901,0.405504,3240.9,3239.5,1.06267529]
[1765550051902,0.865304,3240.9,3239.5,1.06267529]
[1765550052209,0.405504,3240.5,3239.3,0.75707529]
[1765550052375,0.405504,3240.3,3239.2,3.08717005]
[1765550052697,0.405504,3240.3,3239.0,3.08735371]
[1765550052698,0.405504,3240.1,3239.0,3.08735371]
[1765550052899,0.405504,3240.1,3239.1,3.08727624]
[1765550053091,0.405504,3239.9,3238.8,0.32639151]
[1765550053270,0.505,3239.8,3238.7,0.1762]
[1765550053476,0.405504,3239.7,3238.7,0.1762]
[1765550053698,0.405504,3239.7,3239.0,0.58047529]
[1765550053904,0.405504,3240.0,3239.0,0.58047529]
[1765550054105,6.1734111,3239.7,3238.2,0.505]
[1765550054411,0.910504,3239.6,3238.2,0.505]
[1765550054586,1.370304,3239.6,3238.3,0.66814615]
[1765550054911,0.4598,3239.5,3238.3,0.66814615]
[1765550055703,0.405504,3239.4,3238.1,6.1764615]
[1765550055904,0.405504,3239.4,3238.1,3.08823075]
[1765550056104,6.17455466,3239.1,3238.0,3.08829521]
[1765550056310,0.910504,3239.0,3237.8,0.71671186]
[1765550056485,0.405504,3238.8,3237.1,0.6816]
[1765550056685,0.405504,3238.8,3237.4,0.58047529]
[1765550056993,0.405504,3238.8,3237.9,3.08841323]
[1765550057201,0.405504,3238.8,3237.9,6.17683473]
[1765550057380,0.405504,3238.8,3238.0,0.58047529]
[1765550057579,0.6486,3239.4,3238.3,0.58047529]